Workbook

Sheet data (hidden)
A1: code | B1: territoire | C1: ROME | D1: LIBELLE | E1: nb | F1: nb_durable | H1: volume arrondi | J1: % durable
A2: =B2&"-"&G2 -> 01-1 | B2: 01 | C2: N1103 | D2: MAGASINAGE ET PRÉPARATION DE COMMANDES | E2: 1140 | F2: 637 | G2: =IF(C2="","",COUNTIF($B$2:B2,"="&B2)) -> 1 | H2: =ROUND(E2,-1) -> 1140 | I2: =E2/SUMIF(B:B,B2,E:E) -> 0.03850830969 | J2: =IF(OR(F2="",F2="."),0,F2/E2) -> 0.5587719298
A3: =B3&"-"&G3 -> 01-2 | B3: 01 | C3: K1304 | D3: SERVICES DOMESTIQUES | E3: 967 | F3: 610 | G3: =IF(C3="","",COUNTIF($B$2:B3,"="&B3)) -> 2 | H3: 970 | I3: 0.0326645048 | J3: 0.6308169597
A4: 01-3 | B4: 01 | C4: D1214 | D4: VENTE EN HABILLEMENT ET ACCESSOIRES DE LA PERSONNE | E4: 788 | F4: 723 | G4: =IF(C4="","",COUNTIF($B$2:B4,"="&B4)) -> 3 | H4: 790 | I4: 0.02661802459 | J4: 0.9175126904
A5: 01-4 | B5: 01 | C5: K2204 | D5: NETTOYAGE DE LOCAUX | E5: 750 | F5: 291 | G5: =IF(C5="","",COUNTIF($B$2:B5,"="&B5)) -> 4 | H5: 750 | I5: 0.02533441427 | J5: 0.388
A6: 01-5 | B6: 01 | C6: G1602 | D6: PERSONNEL DE CUISINE | E6: 645 | F6: 375 | G6: =IF(C6="","",COUNTIF($B$2:B6,"="&B6)) -> 5 | H6: 650 | I6: 0.02178759627 | J6: 0.5813953488
A7: 01-6 | B7: 01 | C7: D1403 | D7: RELATION COMMERCIALE AUPRÈS DE PARTICULIERS | E7: 584 | F7: 578 | G7: =IF(C7="","",COUNTIF($B$2:B7,"="&B7)) -> 6 | H7: 580 | I7: 0.01972706391 | J7: 0.9897260274
A8: 01-7 | B8: 01 | C8: K1302 | D8: ASSISTANCE AUPRÈS D'ADULTES | E8: 539 | F8: 447 | G8: =IF(C8="","",COUNTIF($B$2:B8,"="&B8)) -> 7 | H8: 540 | I8: 0.01820699905 | J8: 0.8293135436
A9: 01-8 | B9: 01 | C9: J1501 | D9: SOINS D'HYGIÈNE, DE CONFORT DU PATIENT | E9: 534 | F9: 312 | G9: =IF(C9="","",COUNTIF($B$2:B9,"="&B9)) -> 8 | H9: 530 | I9: 0.01803810296 | J9: 0.5842696629
A10: 01-9 | B10: 01 | C10: D1507 | D10: MISE EN RAYON LIBRE-SERVICE | E10: 521 | F10: 393 | G10: =IF(C10="","",COUNTIF($B$2:B10,"="&B10)) -> 9 | H10: 520 | I10: 0.01759897311 | J10: 0.754318618
A11: 01-10 | B11: 01 | C11: I1604 | D11: MÉCANIQUE AUTOMOBILE ET ENTRETIEN DE VÉHICULES | E11: 518 | F11: 454 | G11: =IF(C11="","",COUNTIF($B$2:B11,"="&B11)) -> 10 | H11: 520 | I11: 0.01749763545 | J11: 0.8764478764
A12: 01-11 | B12: 01 | C12: N4101 | D12: CONDUITE DE TRANSPORT DE MARCHANDISES SUR LONGUE DISTANCE | E12: 476 | F12: 312 | G12: =IF(C12="","",COUNTIF($B$2:B12,"="&B12)) -> 11 | H12: 480 | I12: 0.01607890826 | J12: 0.6554621849
A13: 01-12 | B13: 01 | C13: D1401 | D13: ASSISTANAT COMMERCIAL | E13: 455 | F13: 316 | G13: =IF(C13="","",COUNTIF($B$2:B13,"="&B13)) -> 12 | H13: 460 | I13: 0.01536954466 | J13: 0.6945054945
A14: 01-13 | B14: 01 | C14: G1603 | D14: PERSONNEL POLYVALENT EN RESTAURATION | E14: 450 | F14: 329 | G14: =IF(C14="","",COUNTIF($B$2:B14,"="&B14)) -> 13 | H14: 450 | I14: 0.01520064856 | J14: 0.7311111111
A15: 01-14 | B15: 01 | C15: M1203 | D15: COMPTABILITÉ | E15: 436 | F15: 319 | G15: =IF(C15="","",COUNTIF($B$2:B15,"="&B15)) -> 14 | H15: 440 | I15: 0.01472773949 | J15: 0.7316513761
A16: 01-15 | B16: 01 | C16: N1105 | D16: MANUTENTION MANUELLE DE CHARGES | E16: 417 | F16: 245 | G16: =IF(C16="","",COUNTIF($B$2:B16,"="&B16)) -> 15 | H16: 420 | I16: 0.01408593433 | J16: 0.587529976
A17: 01-16 | B17: 01 | C17: I1304 | D17: INSTALLATION ET MAINTENANCE D'ÉQUIPEMENTS INDUSTRIELS ET D'EXPLOITATION | E17: 398 | F17: 349 | G17: =IF(C17="","",COUNTIF($B$2:B17,"="&B17)) -> 16 | H17: 400 | I17: 0.01344412917 | J17: 0.8768844221
A18: 01-17 | B18: 01 | C18: K1207 | D18: INTERVENTION SOCIOÉDUCATIVE | E18: 397 | F18: 246 | G18: =IF(C18="","",COUNTIF($B$2:B18,"="&B18)) -> 17 | H18: 400 | I18: 0.01341034995 | J18: 0.6196473552
A19: 01-18 | B19: 01 | C19: K2107 | D19: ENSEIGNEMENT GÉNÉRAL DU SECOND DEGRÉ | E19: 390 | F19: 201 | G19: =IF(C19="","",COUNTIF($B$2:B19,"="&B19)) -> 18 | H19: 390 | I19: 0.01317389542 | J19: 0.5153846154
A20: 01-19 | B20: 01 | C20: M1607 | D20: SECRÉTARIAT | E20: 389 | F20: 239 | G20: =IF(C20="","",COUNTIF($B$2:B20,"="&B20)) -> 19 | H20: 390 | I20: 0.0131401162 | J20: 0.6143958869
A21: 01-20 | B21: 01 | C21: G1803 | D21: SERVICE EN RESTAURATION | E21: 381 | F21: 230 | G21: =IF(C21="","",COUNTIF($B$2:B21,"="&B21)) -> 20 | H21: 380 | I21: 0.01286988245 | J21: 0.6036745407
A22: 01-21 | B22: 01 | C22: J1506 | D22: SOINS INFIRMIERS GÉNÉRALISTES | E22: 366 | F22: 227 | G22: =IF(C22="","",COUNTIF($B$2:B22,"="&B22)) -> 21 | H22: 370 | I22: 0.01236319416 | J22: 0.6202185792
A23: 01-22 | B23: 01 | C23: G1203 | D23: ANIMATION DE LOISIRS AUPRÈS D'ENFANTS OU D'ADOLESCENTS | E23: 357 | F23: 221 | G23: =IF(C23="","",COUNTIF($B$2:B23,"="&B23)) -> 22 | H23: 360 | I23: 0.01205918119 | J23: 0.619047619
A24: 01-23 | B24: 01 | C24: D1106 | D24: VENTE EN ALIMENTATION | E24: 333 | F24: 256 | G24: =IF(C24="","",COUNTIF($B$2:B24,"="&B24)) -> 23 | H24: 330 | I24: 0.01124847994 | J24: 0.7687687688
A25: 01-24 | B25: 01 | C25: N1101 | D25: CONDUITE D'ENGINS DE DÉPLACEMENT DES CHARGES | E25: 321 | F25: 153 | G25: =IF(C25="","",COUNTIF($B$2:B25,"="&B25)) -> 24 | H25: 320 | I25: 0.01084312931 | J25: 0.476635514
A26: 01-25 | B26: 01 | C26: H2909 | D26: MONTAGE-ASSEMBLAGE MÉCANIQUE | E26: 297 | F26: 135 | G26: =IF(C26="","",COUNTIF($B$2:B26,"="&B26)) -> 25 | H26: 300 | I26: 0.01003242805 | J26: 0.4545454545
A27: 01-26 | B27: 01 | C27: F1703 | D27: MAÇONNERIE | E27: 286 | F27: 166 | G27: =IF(C27="","",COUNTIF($B$2:B27,"="&B27)) -> 26 | H27: 290 | I27: 0.009660856641 | J27: 0.5804195804
A28: 01-27 | B28: 01 | C28: N4105 | D28: CONDUITE ET LIVRAISON PAR TOURNÉES SUR COURTE DISTANCE | E28: 275 | F28: 179 | G28: =IF(C28="","",COUNTIF($B$2:B28,"="&B28)) -> 27 | H28: 280 | I28: 0.009289285232 | J28: 0.6509090909
A29: 01-28 | B29: 01 | C29: I1203 | D29: MAINTENANCE DES BÂTIMENTS ET DES LOCAUX | E29: 267 | F29: 186 | G29: =IF(C29="","",COUNTIF($B$2:B29,"="&B29)) -> 28 | H29: 270 | I29: 0.00901905148 | J29: 0.6966292135
A30: 01-29 | B30: 01 | C30: J1301 | D30: PERSONNEL POLYVALENT DES SERVICES HOSPITALIERS | E30: 261 | F30: 68 | G30: =IF(C30="","",COUNTIF($B$2:B30,"="&B30)) -> 29 | H30: 260 | I30: 0.008816376165 | J30: 0.2605363985
A31: 01-30 | B31: 01 | C31: A1203 | D31: AMÉNAGEMENT ET ENTRETIEN DES ESPACES VERTS | E31: 239 | F31: 136 | G31: =IF(C31="","",COUNTIF($B$2:B31,"="&B31)) -> 30 | H31: 240 | I31: 0.008073233347 | J31: 0.5690376569
A32: 01-31 | B32: 01 | C32: H3302 | D32: OPÉRATIONS MANUELLES D'ASSEMBLAGE, TRI OU EMBALLAGE | E32: 235 | F32: 134 | G32: =IF(C32="","",COUNTIF($B$2:B32,"="&B32)) -> 31 | H32: 240 | I32: 0.007938116471 | J32: 0.570212766
A33: 01-32 | B33: 01 | C33: F1603 | D33: INSTALLATION D'ÉQUIPEMENTS SANITAIRES ET THERMIQUES | E33: 231 | F33: 171 | G33: =IF(C33="","",COUNTIF($B$2:B33,"="&B33)) -> 32 | H33: 230 | I33: 0.007802999595 | J33: 0.7402597403
A34: 01-33 | B34: 01 | C34: K2503 | D34: SÉCURITÉ ET SURVEILLANCE PRIVÉES | E34: 228 | F34: 66 | G34: =IF(C34="","",COUNTIF($B$2:B34,"="&B34)) -> 33 | H34: 230 | I34: 0.007701661938 | J34: 0.2894736842
A35: 01-34 | B35: 01 | C35: H3201 | D35: CONDUITE D'ÉQUIPEMENT DE FORMAGE DES PLASTIQUES ET CAOUTCHOUCS | E35: 227 | F35: 134 | G35: =IF(C35="","",COUNTIF($B$2:B35,"="&B35)) -> 34 | H35: 230 | I35: 0.007667882719 | J35: 0.59030837
A36: 01-35 | B36: 01 | C36: H2102 | D36: CONDUITE D'ÉQUIPEMENT DE PRODUCTION ALIMENTAIRE | E36: 222 | F36: 119 | G36: =IF(C36="","",COUNTIF($B$2:B36,"="&B36)) -> 35 | H36: 220 | I36: 0.007498986623 | J36: 0.536036036
A37: 01-36 | B37: 01 | C37: K1201 | D37: ACTION SOCIALE | E37: 221 | F37: 151 | G37: =IF(C37="","",COUNTIF($B$2:B37,"="&B37)) -> 36 | H37: 220 | I37: 0.007465207404 | J37: 0.6832579186
A38: 01-37 | B38: 01 | C38: F1704 | D38: PRÉPARATION DU GROS OEUVRE ET DES TRAVAUX PUBLICS | E38: 200 | F38: 81 | G38: =IF(C38="","",COUNTIF($B$2:B38,"="&B38)) -> 37 | H38: 200 | I38: 0.006755843805 | J38: 0.405
A39: 01-38 | B39: 01 | C39: D1202 | D39: COIFFURE | E39: 197 | F39: 167 | G39: =IF(C39="","",COUNTIF($B$2:B39,"="&B39)) -> 38 | H39: 200 | I39: 0.006654506148 | J39: 0.847715736
A40: 01-39 | B40: 01 | C40: K1301 | D40: ACCOMPAGNEMENT MÉDICOSOCIAL | E40: 194 | F40: 113 | G40: =IF(C40="","",COUNTIF($B$2:B40,"="&B40)) -> 39 | H40: 190 | I40: 0.006553168491 | J40: 0.5824742268
A41: 01-40 | B41: 01 | C41: F1602 | D41: ÉLECTRICITÉ BÂTIMENT | E41: 191 | F41: 124 | G41: =IF(C41="","",COUNTIF($B$2:B41,"="&B41)) -> 40 | H41: 190 | I41: 0.006451830834 | J41: 0.6492146597
A42: 01-41 | B42: 01 | C42: K1303 | D42: ASSISTANCE AUPRÈS D'ENFANTS | E42: 189 | F42: 138 | G42: =IF(C42="","",COUNTIF($B$2:B42,"="&B42)) -> 41 | H42: 190 | I42: 0.006384272396 | J42: 0.7301587302
A43: 01-42 | B43: 01 | C43: M1601 | D43: ACCUEIL ET RENSEIGNEMENTS | E43: 187 | F43: 74 | G43: =IF(C43="","",COUNTIF($B$2:B43,"="&B43)) -> 42 | H43: 190 | I43: 0.006316713958 | J43: 0.3957219251
A44: 01-43 | B44: 01 | C44: H2602 | D44: CÂBLAGE ÉLECTRIQUE ET ÉLECTROMÉCANIQUE | E44: 184 | F44: 90 | G44: =IF(C44="","",COUNTIF($B$2:B44,"="&B44)) -> 43 | H44: 180 | I44: 0.0062153763 | J44: 0.4891304348
A45: 01-44 | B45: 01 | C45: H2903 | D45: CONDUITE D'ÉQUIPEMENT D'USINAGE | E45: 183 | F45: 121 | G45: =IF(C45="","",COUNTIF($B$2:B45,"="&B45)) -> 44 | H45: 180 | I45: 0.006181597081 | J45: 0.6612021858
A46: 01-45 | B46: 01 | C46: F1302 | D46: CONDUITE D'ENGINS DE TERRASSEMENT ET DE CARRIÈRE | E46: 183 | F46: 126 | G46: =IF(C46="","",COUNTIF($B$2:B46,"="&B46)) -> 45 | H46: 180 | I46: 0.006181597081 | J46: 0.6885245902
A47: 01-46 | B47: 01 | C47: H3301 | D47: CONDUITE D'ÉQUIPEMENT DE CONDITIONNEMENT | E47: 180 | F47: 113 | G47: =IF(C47="","",COUNTIF($B$2:B47,"="&B47)) -> 46 | H47: 180 | I47: 0.006080259424 | J47: 0.6277777778
A48: 01-47 | B48: 01 | C48: D1505 | D48: PERSONNEL DE CAISSE | E48: 179 | F48: 97 | G48: =IF(C48="","",COUNTIF($B$2:B48,"="&B48)) -> 47 | H48: 180 | I48: 0.006046480205 | J48: 0.5418994413
A49: 01-48 | B49: 01 | C49: D1212 | D49: VENTE EN DÉCORATION ET ÉQUIPEMENT DU FOYER | E49: 178 | F49: 120 | G49: =IF(C49="","",COUNTIF($B$2:B49,"="&B49)) -> 48 | H49: 180 | I49: 0.006012700986 | J49: 0.6741573034
A50: 01-49 | B50: 01 | C50: N1303 | D50: INTERVENTION TECHNIQUE D'EXPLOITATION LOGISTIQUE | E50: 176 | F50: 126 | G50: =IF(C50="","",COUNTIF($B$2:B50,"="&B50)) -> 49 | H50: 180 | I50: 0.005945142548 | J50: 0.7159090909
A51: 01-50 | B51: 01 | C51: I1606 | D51: RÉPARATION DE CARROSSERIE | E51: 173 | F51: 160 | G51: =IF(C51="","",COUNTIF($B$2:B51,"="&B51)) -> 50 | H51: 170 | I51: 0.005843804891 | J51: 0.9248554913
A52: 01-51 | B52: 01 | C52: K2104 | D52: ÉDUCATION ET SURVEILLANCE AU SEIN D'ÉTABLISSEMENTS D'ENSEIGNEMENT | E52: 166 | F52: 134 | G52: =IF(C52="","",COUNTIF($B$2:B52,"="&B52)) -> 51 | H52: 170 | I52: 0.005607350358 | J52: 0.8072289157
A53: 01-52 | B53: 01 | C53: H2913 | D53: SOUDAGE MANUEL | E53: 154 | F53: 81 | G53: =IF(C53="","",COUNTIF($B$2:B53,"="&B53)) -> 52 | H53: 150 | I53: 0.00520199973 | J53: 0.525974026
A54: 01-53 | B54: 01 | C54: G1204 | D54: ÉDUCATION EN ACTIVITÉS SPORTIVES | E54: 142 | F54: 105 | G54: =IF(C54="","",COUNTIF($B$2:B54,"="&B54)) -> 53 | H54: 140 | I54: 0.004796649101 | J54: 0.7394366197
A55: 01-54 | B55: 01 | C55: F1604 | D55: MONTAGE D'AGENCEMENTS | E55: 140 | F55: 80 | G55: =IF(C55="","",COUNTIF($B$2:B55,"="&B55)) -> 54 | H55: 140 | I55: 0.004729090663 | J55: 0.5714285714
A56: 01-55 | B56: 01 | C56: D1407 | D56: RELATION TECHNICO-COMMERCIALE | E56: 140 | F56: 132 | G56: =IF(C56="","",COUNTIF($B$2:B56,"="&B56)) -> 55 | H56: 140 | I56: 0.004729090663 | J56: 0.9428571429
A57: 01-56 | B57: 01 | C57: J1304 | D57: AIDE EN PUÉRICULTURE | E57: 139 | F57: 108 | G57: =IF(C57="","",COUNTIF($B$2:B57,"="&B57)) -> 56 | H57: 140 | I57: 0.004695311444 | J57: 0.7769784173
A58: 01-57 | B58: 01 | C58: G1605 | D58: PLONGE EN RESTAURATION | E58: 135 | F58: 62 | G58: =IF(C58="","",COUNTIF($B$2:B58,"="&B58)) -> 57 | H58: 140 | I58: 0.004560194568 | J58: 0.4592592593
A59: 01-58 | B59: 01 | C59: H2206 | D59: RÉALISATION DE MENUISERIE BOIS ET TONNELLERIE | E59: 133 | F59: 71 | G59: =IF(C59="","",COUNTIF($B$2:B59,"="&B59)) -> 58 | H59: 130 | I59: 0.00449263613 | J59: 0.5338345865
A60: 01-59 | B60: 01 | C60: F1605 | D60: MONTAGE DE RÉSEAUX ÉLECTRIQUES ET TÉLÉCOMS | E60: 132 | F60: 107 | G60: =IF(C60="","",COUNTIF($B$2:B60,"="&B60)) -> 59 | H60: 130 | I60: 0.004458856911 | J60: 0.8106060606
A61: 01-60 | B61: 01 | C61: F1607 | D61: POSE DE FERMETURES MENUISÉES | E61: 131 | F61: 90 | G61: =IF(C61="","",COUNTIF($B$2:B61,"="&B61)) -> 60 | H61: 130 | I61: 0.004425077692 | J61: 0.6870229008
A62: 01-61 | B62: 01 | C62: D1404 | D62: RELATION COMMERCIALE EN VENTE DE VÉHICULES | E62: 131 | F62: 124 | G62: =IF(C62="","",COUNTIF($B$2:B62,"="&B62)) -> 61 | H62: 130 | I62: 0.004425077692 | J62: 0.9465648855
A63: 01-62 | B63: 01 | C63: K2111 | D63: FORMATION PROFESSIONNELLE | E63: 129 | F63: 76 | G63: =IF(C63="","",COUNTIF($B$2:B63,"="&B63)) -> 62 | H63: 130 | I63: 0.004357519254 | J63: 0.5891472868
A64: 01-63 | B64: 01 | C64: H3202 | D64: RÉGLAGE D'ÉQUIPEMENT DE FORMAGE DES PLASTIQUES ET CAOUTCHOUCS | E64: 128 | F64: 100 | G64: =IF(C64="","",COUNTIF($B$2:B64,"="&B64)) -> 63 | H64: 130 | I64: 0.004323740035 | J64: 0.78125
A65: 01-64 | B65: 01 | C65: F1202 | D65: DIRECTION DE CHANTIER DU BTP | E65: 124 | F65: 113 | G65: =IF(C65="","",COUNTIF($B$2:B65,"="&B65)) -> 64 | H65: =ROUND(E65,-1) -> 120 | I65: 0.004188623159 | J65: =IF(OR(F65="",F65="."),0,F65/E65) -> 0.9112903226
A66: 01-65 | B66: 01 | C66: D1102 | D66: BOULANGERIE - VIENNOISERIE | E66: 122 | F66: 105 | G66: =IF(C66="","",COUNTIF($B$2:B66,"="&B66)) -> 65 | H66: 120 | I66: =E66/SUMIF(B:B,B66,E:E) -> 0.004121064721 | J66: 0.8606557377
A67: =B67&"-"&G67 -> 01-66 | B67: 01 | C67: M1501 | D67: ASSISTANAT EN RESSOURCES HUMAINES | E67: 116 | F67: 71 | G67: =IF(C67="","",COUNTIF($B$2:B67,"="&B67)) -> 66 | H67: 120 | I67: 0.003918389407 | J67: 0.6120689655
A68: 01-67 | B68: 01 | C68: K1104 | D68: PSYCHOLOGIE | E68: 113 | F68: 69 | G68: =IF(C68="","",COUNTIF($B$2:B68,"="&B68)) -> 67 | H68: 110 | I68: 0.00381705175 | J68: 0.610619469
A69: 01-68 | B69: 01 | C69: H1404 | D69: INTERVENTION TECHNIQUE EN MÉTHODES ET INDUSTRIALISATION | E69: 107 | F69: 76 | G69: =IF(C69="","",COUNTIF($B$2:B69,"="&B69)) -> 68 | H69: 110 | I69: 0.003614376436 | J69: 0.7102803738
A70: 01-69 | B70: 01 | C70: D1208 | D70: SOINS ESTHÉTIQUES ET CORPORELS | E70: 104 | F70: 76 | G70: =IF(C70="","",COUNTIF($B$2:B70,"="&B70)) -> 69 | H70: 100 | I70: 0.003513038779 | J70: 0.7307692308
A71: 01-70 | B71: 01 | C71: N4103 | D71: CONDUITE DE TRANSPORT EN COMMUN SUR ROUTE | E71: 103 | F71: 93 | G71: =IF(C71="","",COUNTIF($B$2:B71,"="&B71)) -> 70 | H71: 100 | I71: 0.00347925956 | J71: 0.9029126214
A72: 01-71 | B72: 01 | C72: H2902 | D72: CHAUDRONNERIE - TÔLERIE | E72: 102 | F72: 60 | G72: =IF(C72="","",COUNTIF($B$2:B72,"="&B72)) -> 71 | H72: 100 | I72: 0.00344548034 | J72: 0.5882352941
A73: 01-72 | B73: 01 | C73: K2303 | D73: NETTOYAGE DES ESPACES URBAINS | E73: 99 | F73: 80 | G73: =IF(C73="","",COUNTIF($B$2:B73,"="&B73)) -> 72 | H73: 100 | I73: 0.003344142683 | J73: 0.8080808081
A74: 01-73 | B74: 01 | C74: J1502 | D74: COORDINATION DE SERVICES MÉDICAUX OU PARAMÉDICAUX | E74: 99 | F74: 69 | G74: =IF(C74="","",COUNTIF($B$2:B74,"="&B74)) -> 73 | H74: 100 | I74: 0.003344142683 | J74: 0.696969697
A75: 01-74 | B75: 01 | C75: K1801 | D75: CONSEIL EN EMPLOI ET INSERTION SOCIOPROFESSIONNELLE | E75: 98 | F75: 46 | G75: =IF(C75="","",COUNTIF($B$2:B75,"="&B75)) -> 74 | H75: 100 | I75: 0.003310363464 | J75: 0.4693877551
A76: 01-75 | B76: 01 | C76: D1408 | D76: TÉLÉCONSEIL ET TÉLÉVENTE | E76: 97 | F76: 55 | G76: =IF(C76="","",COUNTIF($B$2:B76,"="&B76)) -> 75 | H76: 100 | I76: 0.003276584245 | J76: 0.5670103093
A77: 01-76 | B77: 01 | C77: M1609 | D77: SECRÉTARIAT ET ASSISTANAT MÉDICAL OU MÉDICO-SOCIAL | E77: 94 | F77: 54 | G77: =IF(C77="","",COUNTIF($B$2:B77,"="&B77)) -> 76 | H77: 90 | I77: 0.003175246588 | J77: 0.5744680851
A78: 01-77 | B78: 01 | C78: D1402 | D78: RELATION COMMERCIALE GRANDS COMPTES ET ENTREPRISES | E78: 94 | F78: 84 | G78: =IF(C78="","",COUNTIF($B$2:B78,"="&B78)) -> 77 | H78: 90 | I78: 0.003175246588 | J78: 0.8936170213
A79: 01-78 | B79: 01 | C79: H2905 | D79: CONDUITE D'ÉQUIPEMENT DE FORMAGE ET DÉCOUPAGE DES MATÉRIAUX | E79: 93 | F79: 52 | G79: =IF(C79="","",COUNTIF($B$2:B79,"="&B79)) -> 78 | H79: 90 | I79: 0.003141467369 | J79: 0.5591397849
A80: 01-79 | B80: 01 | C80: M1605 | D80: ASSISTANAT TECHNIQUE ET ADMINISTRATIF | E80: 92 | F80: 70 | G80: =IF(C80="","",COUNTIF($B$2:B80,"="&B80)) -> 79 | H80: 90 | I80: 0.00310768815 | J80: 0.7608695652
A81: 01-80 | B81: 01 | C81: D1101 | D81: BOUCHERIE | E81: 92 | F81: 76 | G81: =IF(C81="","",COUNTIF($B$2:B81,"="&B81)) -> 80 | H81: 90 | I81: 0.00310768815 | J81: 0.8260869565
A82: 01-81 | B82: 01 | C82: H3404 | D82: PEINTURE INDUSTRIELLE | E82: 89 | F82: 37 | G82: =IF(C82="","",COUNTIF($B$2:B82,"="&B82)) -> 81 | H82: 90 | I82: 0.003006350493 | J82: 0.4157303371
A83: 01-82 | B83: 01 | C83: M1602 | D83: OPÉRATIONS ADMINISTRATIVES | E83: 88 | F83: 46 | G83: =IF(C83="","",COUNTIF($B$2:B83,"="&B83)) -> 82 | H83: 90 | I83: 0.002972571274 | J83: 0.5227272727
A84: 01-83 | B84: 01 | C84: D1104 | D84: PÂTISSERIE, CONFISERIE, CHOCOLATERIE ET GLACERIE | E84: 86 | F84: 82 | G84: =IF(C84="","",COUNTIF($B$2:B84,"="&B84)) -> 83 | H84: 90 | I84: 0.002905012836 | J84: 0.9534883721
A85: 01-84 | B85: 01 | C85: F1201 | D85: CONDUITE DE TRAVAUX DU BTP ET DE TRAVAUX PAYSAGERS | E85: 85 | F85: 76 | G85: =IF(C85="","",COUNTIF($B$2:B85,"="&B85)) -> 84 | H85: 90 | I85: 0.002871233617 | J85: 0.8941176471
A86: 01-85 | B86: 01 | C86: F1107 | D86: MESURES TOPOGRAPHIQUES | E86: 85 | F86: 82 | G86: =IF(C86="","",COUNTIF($B$2:B86,"="&B86)) -> 85 | H86: 90 | I86: 0.002871233617 | J86: 0.9647058824
A87: 01-86 | B87: 01 | C87: G1202 | D87: ANIMATION D'ACTIVITÉS CULTURELLES OU LUDIQUES | E87: 84 | F87: 66 | G87: =IF(C87="","",COUNTIF($B$2:B87,"="&B87)) -> 86 | H87: 80 | I87: 0.002837454398 | J87: 0.7857142857
A88: 01-87 | B88: 01 | C88: A1416 | D88: POLYCULTURE, ÉLEVAGE | E88: 84 | F88: 58 | G88: =IF(C88="","",COUNTIF($B$2:B88,"="&B88)) -> 87 | H88: 80 | I88: 0.002837454398 | J88: 0.6904761905
A89: 01-88 | B89: 01 | C89: D1211 | D89: VENTE EN ARTICLES DE SPORT ET LOISIRS | E89: 82 | F89: 40 | G89: =IF(C89="","",COUNTIF($B$2:B89,"="&B89)) -> 88 | H89: 80 | I89: 0.00276989596 | J89: 0.487804878
A90: 01-89 | B90: 01 | C90: G1501 | D90: PERSONNEL D'ÉTAGE | E90: 81 | F90: 36 | G90: =IF(C90="","",COUNTIF($B$2:B90,"="&B90)) -> 89 | H90: 80 | I90: 0.002736116741 | J90: 0.4444444444
A91: 01-90 | B91: 01 | C91: H1502 | D91: MANAGEMENT ET INGÉNIERIE QUALITÉ INDUSTRIELLE | E91: 79 | F91: 62 | G91: =IF(C91="","",COUNTIF($B$2:B91,"="&B91)) -> 90 | H91: 80 | I91: 0.002668558303 | J91: 0.7848101266
A92: 01-91 | B92: 01 | C92: K2110 | D92: FORMATION EN CONDUITE DE VÉHICULES | E92: 78 | F92: 74 | G92: =IF(C92="","",COUNTIF($B$2:B92,"="&B92)) -> 91 | H92: 80 | I92: 0.002634779084 | J92: 0.9487179487
A93: 01-92 | B93: 01 | C93: J1305 | D93: CONDUITE DE VÉHICULES SANITAIRES | E93: 76 | F93: 74 | G93: =IF(C93="","",COUNTIF($B$2:B93,"="&B93)) -> 92 | H93: 80 | I93: 0.002567220646 | J93: 0.9736842105
A94: 01-93 | B94: 01 | C94: D1209 | D94: VENTE DE VÉGÉTAUX | E94: 76 | F94: 49 | G94: =IF(C94="","",COUNTIF($B$2:B94,"="&B94)) -> 93 | H94: 80 | I94: 0.002567220646 | J94: 0.6447368421
A95: 01-94 | B95: 01 | C95: D1107 | D95: VENTE EN GROS DE PRODUITS FRAIS | E95: 76 | F95: 76 | G95: =IF(C95="","",COUNTIF($B$2:B95,"="&B95)) -> 94 | H95: 80 | I95: 0.002567220646 | J95: 1
A96: 01-95 | B96: 01 | C96: F1606 | D96: PEINTURE EN BÂTIMENT | E96: 75 | F96: 34 | G96: =IF(C96="","",COUNTIF($B$2:B96,"="&B96)) -> 95 | H96: 80 | I96: 0.002533441427 | J96: 0.4533333333
A97: 01-96 | B97: 01 | C97: I1309 | D97: MAINTENANCE ÉLECTRIQUE | E97: 75 | F97: 52 | G97: =IF(C97="","",COUNTIF($B$2:B97,"="&B97)) -> 96 | H97: 80 | I97: 0.002533441427 | J97: 0.6933333333
A98: 01-97 | B98: 01 | C98: F1610 | D98: POSE ET RESTAURATION DE COUVERTURES | E98: 74 | F98: 55 | G98: =IF(C98="","",COUNTIF($B$2:B98,"="&B98)) -> 97 | H98: 70 | I98: 0.002499662208 | J98: 0.7432432432
A99: 01-98 | B99: 01 | C99: F1608 | D99: POSE DE REVÊTEMENTS RIGIDES | E99: 74 | F99: 44 | G99: =IF(C99="","",COUNTIF($B$2:B99,"="&B99)) -> 98 | H99: 70 | I99: 0.002499662208 | J99: 0.5945945946
A100: 01-99 | B100: 01 | C100: M1603 | D100: DISTRIBUTION DE DOCUMENTS | E100: 72 | F100: 34 | G100: =IF(C100="","",COUNTIF($B$2:B100,"="&B100)) -> 99 | H100: 70 | I100: 0.00243210377 | J100: 0.4722222222
A101: 01-100 | B101: 01 | C101: J1404 | D101: KINÉSITHÉRAPIE | E101: 72 | F101: 55 | G101: =IF(C101="","",COUNTIF($B$2:B101,"="&B101)) -> 100 | H101: 70 | I101: 0.00243210377 | J101: 0.7638888889
A102: 01-101 | B102: 01 | C102: I1308 | D102: MAINTENANCE D'INSTALLATION DE CHAUFFAGE | E102: 70 | F102: 64 | G102: =IF(C102="","",COUNTIF($B$2:B102,"="&B102)) -> 101 | H102: 70 | I102: 0.002364545332 | J102: 0.9142857143
A103: 01-102 | B103: 01 | C103: F1104 | D103: DESSIN BTP ET PAYSAGE | E103: 70 | F103: 66 | G103: =IF(C103="","",COUNTIF($B$2:B103,"="&B103)) -> 102 | H103: 70 | I103: 0.002364545332 | J103: 0.9428571429
A104: 01-103 | B104: 01 | C104: C1502 | D104: GESTION LOCATIVE IMMOBILIÈRE | E104: 70 | F104: 53 | G104: =IF(C104="","",COUNTIF($B$2:B104,"="&B104)) -> 103 | H104: 70 | I104: 0.002364545332 | J104: 0.7571428571
A105: 01-104 | B105: 01 | C105: G1601 | D105: MANAGEMENT DU PERSONNEL DE CUISINE | E105: 69 | F105: 55 | G105: =IF(C105="","",COUNTIF($B$2:B105,"="&B105)) -> 104 | H105: 70 | I105: 0.002330766113 | J105: 0.7971014493
A106: 01-105 | B106: 01 | C106: H2901 | D106: AJUSTEMENT ET MONTAGE DE FABRICATION | E106: 69 | F106: 43 | G106: =IF(C106="","",COUNTIF($B$2:B106,"="&B106)) -> 105 | H106: 70 | I106: 0.002330766113 | J106: 0.6231884058
A107: 01-106 | B107: 01 | C107: H1403 | D107: INTERVENTION TECHNIQUE EN GESTION INDUSTRIELLE ET LOGISTIQUE | E107: 66 | F107: 44 | G107: =IF(C107="","",COUNTIF($B$2:B107,"="&B107)) -> 106 | H107: 70 | I107: 0.002229428456 | J107: 0.6666666667
A108: 01-107 | B108: 01 | C108: F1503 | D108: RÉALISATION - INSTALLATION D'OSSATURES BOIS | E108: 65 | F108: 43 | G108: =IF(C108="","",COUNTIF($B$2:B108,"="&B108)) -> 107 | H108: 70 | I108: 0.002195649237 | J108: 0.6615384615
A109: 01-108 | B109: 01 | C109: J1307 | D109: PRÉPARATION EN PHARMACIE | E109: 65 | F109: 50 | G109: =IF(C109="","",COUNTIF($B$2:B109,"="&B109)) -> 108 | H109: 70 | I109: 0.002195649237 | J109: 0.7692307692
A110: 01-109 | B110: 01 | C110: F1106 | D110: INGÉNIERIE ET ÉTUDES DU BTP | E110: 65 | F110: 64 | G110: =IF(C110="","",COUNTIF($B$2:B110,"="&B110)) -> 109 | H110: 70 | I110: 0.002195649237 | J110: 0.9846153846
A111: 01-110 | B111: 01 | C111: K2301 | D111: DISTRIBUTION ET ASSAINISSEMENT D'EAU | E111: 65 | F111: 55 | G111: =IF(C111="","",COUNTIF($B$2:B111,"="&B111)) -> 110 | H111: 70 | I111: 0.002195649237 | J111: 0.8461538462
A112: 01-111 | B112: 01 | C112: F1702 | D112: CONSTRUCTION DE ROUTES ET VOIES | E112: 64 | F112: 26 | G112: =IF(C112="","",COUNTIF($B$2:B112,"="&B112)) -> 111 | H112: 60 | I112: 0.002161870018 | J112: 0.40625
A113: 01-112 | B113: 01 | C113: K1202 | D113: ÉDUCATION DE JEUNES ENFANTS | E113: 63 | F113: 50 | G113: =IF(C113="","",COUNTIF($B$2:B113,"="&B113)) -> 112 | H113: 60 | I113: 0.002128090799 | J113: 0.7936507937
A114: 01-113 | B114: 01 | C114: M1604 | D114: ASSISTANAT DE DIRECTION | E114: 63 | F114: 41 | G114: =IF(C114="","",COUNTIF($B$2:B114,"="&B114)) -> 113 | H114: 60 | I114: 0.002128090799 | J114: 0.6507936508
A115: 01-114 | B115: 01 | C115: J1505 | D115: SOINS INFIRMIERS SPÉCIALISÉS EN PRÉVENTION | E115: 61 | F115: 26 | G115: =IF(C115="","",COUNTIF($B$2:B115,"="&B115)) -> 114 | H115: 60 | I115: 0.00206053236 | J115: 0.4262295082
A116: 01-115 | B116: 01 | C116: I1307 | D116: INSTALLATION ET MAINTENANCE TÉLÉCOMS ET COURANTS FAIBLES | E116: 61 | F116: 51 | G116: =IF(C116="","",COUNTIF($B$2:B116,"="&B116)) -> 115 | H116: 60 | I116: 0.00206053236 | J116: 0.8360655738
A117: 01-116 | B117: 01 | C117: H2604 | D117: MONTAGE DE PRODUITS ÉLECTRIQUES ET ÉLECTRONIQUES | E117: 60 | F117: 21 | G117: =IF(C117="","",COUNTIF($B$2:B117,"="&B117)) -> 116 | H117: 60 | I117: 0.002026753141 | J117: 0.35
A118: 01-117 | B118: 01 | C118: M1502 | D118: DÉVELOPPEMENT DES RESSOURCES HUMAINES | E118: 60 | F118: 45 | G118: =IF(C118="","",COUNTIF($B$2:B118,"="&B118)) -> 117 | H118: 60 | I118: 0.002026753141 | J118: 0.75
A119: 01-118 | B119: 01 | C119: G1801 | D119: CAFÉ, BAR BRASSERIE | E119: 59 | F119: 37 | G119: =IF(C119="","",COUNTIF($B$2:B119,"="&B119)) -> 118 | H119: 60 | I119: 0.001992973922 | J119: 0.6271186441
A120: 01-119 | B120: 01 | C120: K1206 | D120: INTERVENTION SOCIOCULTURELLE | E120: 59 | F120: 43 | G120: =IF(C120="","",COUNTIF($B$2:B120,"="&B120)) -> 119 | H120: 60 | I120: 0.001992973922 | J120: 0.7288135593
A121: 01-120 | B121: 01 | C121: K1403 | D121: MANAGEMENT DE STRUCTURE DE SANTÉ, SOCIALE OU PÉNITENTIAIRE | E121: 58 | F121: 42 | G121: =IF(C121="","",COUNTIF($B$2:B121,"="&B121)) -> 120 | H121: 60 | I121: 0.001959194703 | J121: 0.724137931
A122: 01-121 | B122: 01 | C122: M1805 | D122: ÉTUDES ET DÉVELOPPEMENT INFORMATIQUE | E122: 57 | F122: 47 | G122: =IF(C122="","",COUNTIF($B$2:B122,"="&B122)) -> 121 | H122: 60 | I122: 0.001925415484 | J122: 0.8245614035
A123: 01-122 | B123: 01 | C123: A1414 | D123: HORTICULTURE ET MARAÎCHAGE | E123: 57 | F123: 12 | G123: =IF(C123="","",COUNTIF($B$2:B123,"="&B123)) -> 122 | H123: 60 | I123: 0.001925415484 | J123: 0.2105263158
A124: 01-123 | B124: 01 | C124: I1306 | D124: INSTALLATION ET MAINTENANCE EN FROID, CONDITIONNEMENT D'AIR | E124: 57 | F124: 53 | G124: =IF(C124="","",COUNTIF($B$2:B124,"="&B124)) -> 123 | H124: 60 | I124: 0.001925415484 | J124: 0.9298245614
A125: 01-124 | B125: 01 | C125: E1304 | D125: FAÇONNAGE ET ROUTAGE | E125: 57 | F125: 4 | G125: =IF(C125="","",COUNTIF($B$2:B125,"="&B125)) -> 124 | H125: 60 | I125: 0.001925415484 | J125: 0.0701754386
A126: 01-125 | B126: 01 | C126: D1301 | D126: MANAGEMENT DE MAGASIN DE DÉTAIL | E126: 55 | F126: 53 | G126: =IF(C126="","",COUNTIF($B$2:B126,"="&B126)) -> 125 | H126: 60 | I126: 0.001857857046 | J126: 0.9636363636
A127: 01-126 | B127: 01 | C127: M1101 | D127: ACHATS | E127: 55 | F127: 42 | G127: =IF(C127="","",COUNTIF($B$2:B127,"="&B127)) -> 126 | H127: 60 | I127: 0.001857857046 | J127: 0.7636363636
A128: 01-127 | B128: 01 | C128: C1501 | D128: GÉRANCE IMMOBILIÈRE | E128: 55 | F128: 52 | G128: =IF(C128="","",COUNTIF($B$2:B128,"="&B128)) -> 127 | H128: 60 | I128: 0.001857857046 | J128: 0.9454545455
A129: 01-128 | B129: 01 | C129: H2504 | D129: ENCADREMENT D'ÉQUIPE EN INDUSTRIE DE TRANSFORMATION | E129: 55 | F129: 47 | G129: =IF(C129="","",COUNTIF($B$2:B129,"="&B129)) -> 128 | H129: =ROUND(E129,-1) -> 60 | I129: 0.001857857046 | J129: =IF(OR(F129="",F129="."),0,F129/E129) -> 0.8545454545
A130: 01-129 | B130: 01 | C130: I1603 | D130: MAINTENANCE D'ENGINS DE CHANTIER, LEVAGE, MANUTENTION ET DE MACHINES AGRICOLES | E130: 54 | F130: 44 | G130: =IF(C130="","",COUNTIF($B$2:B130,"="&B130)) -> 129 | H130: 50 | I130: =E130/SUMIF(B:B,B130,E:E) -> 0.001824077827 | J130: 0.8148148148
A131: =B131&"-"&G131 -> 01-130 | B131: 01 | C131: H2907 | D131: CONDUITE D'INSTALLATION DE PRODUCTION DES MÉTAUX | E131: 54 | F131: 15 | G131: =IF(C131="","",COUNTIF($B$2:B131,"="&B131)) -> 130 | H131: 50 | I131: 0.001824077827 | J131: 0.2777777778
A132: 01-131 | B132: 01 | C132: K1203 | D132: ENCADREMENT TECHNIQUE EN INSERTION PROFESSIONNELLE | E132: 53 | F132: 39 | G132: =IF(C132="","",COUNTIF($B$2:B132,"="&B132)) -> 131 | H132: 50 | I132: 0.001790298608 | J132: 0.7358490566
A133: 01-132 | B133: 01 | C133: H2502 | D133: MANAGEMENT ET INGÉNIERIE DE PRODUCTION | E133: 52 | F133: 46 | G133: =IF(C133="","",COUNTIF($B$2:B133,"="&B133)) -> 132 | H133: 50 | I133: 0.001756519389 | J133: 0.8846153846
A134: 01-133 | B134: 01 | C134: M1608 | D134: SECRÉTARIAT COMPTABLE | E134: 51 | F134: 32 | G134: =IF(C134="","",COUNTIF($B$2:B134,"="&B134)) -> 133 | H134: 50 | I134: 0.00172274017 | J134: 0.6274509804
A135: 01-134 | B135: 01 | C135: J1303 | D135: ASSISTANCE MÉDICO-TECHNIQUE | E135: 51 | F135: 45 | G135: =IF(C135="","",COUNTIF($B$2:B135,"="&B135)) -> 134 | H135: 50 | I135: 0.00172274017 | J135: 0.8823529412
A136: 01-135 | B136: 01 | C136: G1703 | D136: RÉCEPTION EN HÔTELLERIE | E136: 51 | F136: 38 | G136: =IF(C136="","",COUNTIF($B$2:B136,"="&B136)) -> 135 | H136: 50 | I136: 0.00172274017 | J136: 0.7450980392
A137: 01-136 | B137: 01 | C137: I1302 | D137: INSTALLATION ET MAINTENANCE D'AUTOMATISMES | E137: 50 | F137: 48 | G137: =IF(C137="","",COUNTIF($B$2:B137,"="&B137)) -> 136 | H137: 50 | I137: 0.001688960951 | J137: 0.96
A138: 01-137 | B138: 01 | C138: H2912 | D138: RÉGLAGE D'ÉQUIPEMENT DE PRODUCTION INDUSTRIELLE | E138: 50 | F138: 31 | G138: =IF(C138="","",COUNTIF($B$2:B138,"="&B138)) -> 137 | H138: 50 | I138: 0.001688960951 | J138: 0.62
A139: 01-138 | B139: 01 | C139: J1101 | D139: MÉDECINE DE PRÉVENTION | E139: 48 | F139: 44 | G139: =IF(C139="","",COUNTIF($B$2:B139,"="&B139)) -> 138 | H139: 50 | I139: 0.001621402513 | J139: 0.9166666667
A140: 01-139 | B140: 01 | C140: H2906 | D140: CONDUITE D'INSTALLATION AUTOMATISÉE OU ROBOTISÉE DE FABRICATION MÉCANIQUE | E140: 47 | F140: 31 | G140: =IF(C140="","",COUNTIF($B$2:B140,"="&B140)) -> 139 | H140: 50 | I140: 0.001587623294 | J140: 0.6595744681
A141: 01-140 | B141: 01 | C141: H1203 | D141: CONCEPTION ET DESSIN PRODUITS MÉCANIQUES | E141: 47 | F141: 41 | G141: =IF(C141="","",COUNTIF($B$2:B141,"="&B141)) -> 140 | H141: 50 | I141: 0.001587623294 | J141: 0.8723404255
A142: 01-141 | B142: 01 | C142: N4203 | D142: INTERVENTION TECHNIQUE D'EXPLOITATION DES TRANSPORTS ROUTIERS DE MARCHANDISES | E142: 47 | F142: 43 | G142: =IF(C142="","",COUNTIF($B$2:B142,"="&B142)) -> 141 | H142: 50 | I142: 0.001587623294 | J142: 0.914893617
A143: 01-142 | B143: 01 | C143: H2101 | D143: ABATTAGE ET DÉCOUPE DES VIANDES | E143: 46 | F143: 27 | G143: =IF(C143="","",COUNTIF($B$2:B143,"="&B143)) -> 142 | H143: 50 | I143: 0.001553844075 | J143: 0.5869565217
A144: 01-143 | B144: 01 | C144: K1802 | D144: DÉVELOPPEMENT LOCAL | E144: 46 | F144: 43 | G144: =IF(C144="","",COUNTIF($B$2:B144,"="&B144)) -> 143 | H144: 50 | I144: 0.001553844075 | J144: 0.9347826087
A145: 01-144 | B145: 01 | C145: J1202 | D145: PHARMACIE | E145: 43 | F145: 39 | G145: =IF(C145="","",COUNTIF($B$2:B145,"="&B145)) -> 144 | H145: 40 | I145: 0.001452506418 | J145: 0.9069767442
A146: 01-145 | B146: 01 | C146: E1301 | D146: CONDUITE DE MACHINES D'IMPRESSION | E146: 43 | F146: 35 | G146: =IF(C146="","",COUNTIF($B$2:B146,"="&B146)) -> 145 | H146: 40 | I146: 0.001452506418 | J146: 0.8139534884
A147: 01-146 | B147: 01 | C147: H3303 | D147: PRÉPARATION DE MATIÈRES ET PRODUITS INDUSTRIELS (BROYAGE, MÉLANGE, ...) | E147: 42 | F147: 14 | G147: =IF(C147="","",COUNTIF($B$2:B147,"="&B147)) -> 146 | H147: 40 | I147: 0.001418727199 | J147: 0.3333333333
A148: 01-147 | B148: 01 | C148: E1103 | D148: COMMUNICATION | E148: 42 | F148: 33 | G148: =IF(C148="","",COUNTIF($B$2:B148,"="&B148)) -> 147 | H148: 40 | I148: 0.001418727199 | J148: 0.7857142857
A149: 01-148 | B149: 01 | C149: H2401 | D149: ASSEMBLAGE - MONTAGE D'ARTICLES EN CUIRS, PEAUX | E149: 41 | F149: 35 | G149: =IF(C149="","",COUNTIF($B$2:B149,"="&B149)) -> 148 | H149: 40 | I149: 0.00138494798 | J149: 0.8536585366
A150: 01-149 | B150: 01 | C150: K1305 | D150: INTERVENTION SOCIALE ET FAMILIALE | E150: 41 | F150: 28 | G150: =IF(C150="","",COUNTIF($B$2:B150,"="&B150)) -> 149 | H150: 40 | I150: 0.00138494798 | J150: 0.6829268293
A151: 01-150 | B151: 01 | C151: H2301 | D151: CONDUITE D'ÉQUIPEMENT DE PRODUCTION CHIMIQUE OU PHARMACEUTIQUE | E151: 41 | F151: 35 | G151: =IF(C151="","",COUNTIF($B$2:B151,"="&B151)) -> 150 | H151: 40 | I151: 0.00138494798 | J151: 0.8536585366
A152: 01-151 | B152: 01 | C152: K2501 | D152: GARDIENNAGE DE LOCAUX | E152: 40 | F152: 35 | G152: =IF(C152="","",COUNTIF($B$2:B152,"="&B152)) -> 151 | H152: 40 | I152: 0.001351168761 | J152: 0.875
A153: 01-152 | B153: 01 | C153: G1401 | D153: ASSISTANCE DE DIRECTION D'HÔTEL-RESTAURANT | E153: 40 | F153: 37 | G153: =IF(C153="","",COUNTIF($B$2:B153,"="&B153)) -> 152 | H153: 40 | I153: 0.001351168761 | J153: 0.925
A154: 01-153 | B154: 01 | C154: H1303 | D154: INTERVENTION TECHNIQUE EN HYGIÈNE SÉCURITÉ ENVIRONNEMENT -HSE- INDUSTRIEL | E154: 40 | F154: 19 | G154: =IF(C154="","",COUNTIF($B$2:B154,"="&B154)) -> 153 | H154: 40 | I154: 0.001351168761 | J154: 0.475
A155: 01-154 | B155: 01 | C155: J1406 | D155: ORTHOPHONIE | E155: 40 | F155: 29 | G155: =IF(C155="","",COUNTIF($B$2:B155,"="&B155)) -> 154 | H155: 40 | I155: 0.001351168761 | J155: 0.725
A156: 01-155 | B156: 01 | C156: H1504 | D156: INTERVENTION TECHNIQUE EN CONTRÔLE ESSAI QUALITÉ EN ÉLECTRICITÉ ET ÉLECTRONIQUE | E156: 39 | F156: 32 | G156: =IF(C156="","",COUNTIF($B$2:B156,"="&B156)) -> 155 | H156: 40 | I156: 0.001317389542 | J156: 0.8205128205
A157: 01-156 | B157: 01 | C157: G1604 | D157: FABRICATION DE CRÊPES OU PIZZAS | E157: 39 | F157: 23 | G157: =IF(C157="","",COUNTIF($B$2:B157,"="&B157)) -> 156 | H157: 40 | I157: 0.001317389542 | J157: 0.5897435897
A158: 01-157 | B158: 01 | C158: M1810 | D158: PRODUCTION ET EXPLOITATION DE SYSTÈMES D'INFORMATION | E158: 38 | F158: 31 | G158: =IF(C158="","",COUNTIF($B$2:B158,"="&B158)) -> 157 | H158: 40 | I158: 0.001283610323 | J158: 0.8157894737
A159: 01-158 | B159: 01 | C159: H1506 | D159: INTERVENTION TECHNIQUE QUALITÉ EN MÉCANIQUE ET TRAVAIL DES MÉTAUX | E159: 36 | F159: 24 | G159: =IF(C159="","",COUNTIF($B$2:B159,"="&B159)) -> 158 | H159: 40 | I159: 0.001216051885 | J159: 0.6666666667
A160: 01-159 | B160: 01 | C160: H1206 | D160: MANAGEMENT ET INGÉNIERIE ÉTUDES, RECHERCHE ET DÉVELOPPEMENT INDUSTRIEL | E160: 36 | F160: 32 | G160: =IF(C160="","",COUNTIF($B$2:B160,"="&B160)) -> 159 | H160: 40 | I160: 0.001216051885 | J160: 0.8888888889
A161: 01-160 | B161: 01 | C161: F1705 | D161: POSE DE CANALISATIONS | E161: 36 | F161: 19 | G161: =IF(C161="","",COUNTIF($B$2:B161,"="&B161)) -> 160 | H161: 40 | I161: 0.001216051885 | J161: 0.5277777778
A162: 01-161 | B162: 01 | C162: G1502 | D162: PERSONNEL POLYVALENT D'HÔTELLERIE | E162: 36 | F162: 19 | G162: =IF(C162="","",COUNTIF($B$2:B162,"="&B162)) -> 161 | H162: 40 | I162: 0.001216051885 | J162: 0.5277777778
A163: 01-162 | B163: 01 | C163: F1611 | D163: RÉALISATION ET RESTAURATION DE FAÇADES | E163: 36 | F163: 30 | G163: =IF(C163="","",COUNTIF($B$2:B163,"="&B163)) -> 162 | H163: 40 | I163: 0.001216051885 | J163: 0.8333333333
A164: 01-163 | B164: 01 | C164: K2106 | D164: ENSEIGNEMENT DES ÉCOLES | E164: 36 | F164: 17 | G164: =IF(C164="","",COUNTIF($B$2:B164,"="&B164)) -> 163 | H164: 40 | I164: 0.001216051885 | J164: 0.4722222222
A165: 01-164 | B165: 01 | C165: K1903 | D165: DÉFENSE ET CONSEIL JURIDIQUE | E165: 36 | F165: 33 | G165: =IF(C165="","",COUNTIF($B$2:B165,"="&B165)) -> 164 | H165: 40 | I165: 0.001216051885 | J165: 0.9166666667
A166: 01-165 | B166: 01 | C166: I1310 | D166: MAINTENANCE MÉCANIQUE INDUSTRIELLE | E166: 35 | F166: 22 | G166: =IF(C166="","",COUNTIF($B$2:B166,"="&B166)) -> 165 | H166: 40 | I166: 0.001182272666 | J166: 0.6285714286
A167: 01-166 | B167: 01 | C167: M1705 | D167: MARKETING | E167: 35 | F167: 28 | G167: =IF(C167="","",COUNTIF($B$2:B167,"="&B167)) -> 166 | H167: 40 | I167: 0.001182272666 | J167: 0.8
A168: 01-167 | B168: 01 | C168: H2605 | D168: MONTAGE ET CÂBLAGE ÉLECTRONIQUE | E168: 35 | F168: 15 | G168: =IF(C168="","",COUNTIF($B$2:B168,"="&B168)) -> 167 | H168: 40 | I168: 0.001182272666 | J168: 0.4285714286
A169: 01-168 | B169: 01 | C169: F1613 | D169: TRAVAUX D'ÉTANCHÉITÉ ET D'ISOLATION | E169: 33 | F169: 20 | G169: =IF(C169="","",COUNTIF($B$2:B169,"="&B169)) -> 168 | H169: 30 | I169: 0.001114714228 | J169: 0.6060606061
A170: 01-169 | B170: 01 | C170: F1502 | D170: MONTAGE DE STRUCTURES MÉTALLIQUES | E170: 33 | F170: 19 | G170: =IF(C170="","",COUNTIF($B$2:B170,"="&B170)) -> 169 | H170: 30 | I170: 0.001114714228 | J170: 0.5757575758
A171: 01-170 | B171: 01 | C171: H2201 | D171: ASSEMBLAGE D'OUVRAGES EN BOIS | E171: 32 | F171: 24 | G171: =IF(C171="","",COUNTIF($B$2:B171,"="&B171)) -> 170 | H171: 30 | I171: 0.001080935009 | J171: 0.75
A172: 01-171 | B172: 01 | C172: C1504 | D172: TRANSACTION IMMOBILIÈRE | E172: 32 | F172: 24 | G172: =IF(C172="","",COUNTIF($B$2:B172,"="&B172)) -> 171 | H172: 30 | I172: 0.001080935009 | J172: 0.75
A173: 01-172 | B173: 01 | C173: N1301 | D173: CONCEPTION ET ORGANISATION DE LA CHAÎNE LOGISTIQUE | E173: 32 | F173: 26 | G173: =IF(C173="","",COUNTIF($B$2:B173,"="&B173)) -> 172 | H173: 30 | I173: 0.001080935009 | J173: 0.8125
A174: 01-173 | B174: 01 | C174: G1101 | D174: ACCUEIL TOURISTIQUE | E174: 31 | F174: 22 | G174: =IF(C174="","",COUNTIF($B$2:B174,"="&B174)) -> 173 | H174: 30 | I174: 0.00104715579 | J174: 0.7096774194
A175: 01-174 | B175: 01 | C175: C1102 | D175: CONSEIL CLIENTÈLE EN ASSURANCES | E175: 31 | F175: 28 | G175: =IF(C175="","",COUNTIF($B$2:B175,"="&B175)) -> 174 | H175: 30 | I175: 0.00104715579 | J175: 0.9032258065
A176: 01-175 | B176: 01 | C176: H1208 | D176: INTERVENTION TECHNIQUE EN ÉTUDES ET CONCEPTION EN AUTOMATISME | E176: 31 | F176: 28 | G176: =IF(C176="","",COUNTIF($B$2:B176,"="&B176)) -> 175 | H176: 30 | I176: 0.00104715579 | J176: 0.9032258065
A177: 01-176 | B177: 01 | C177: K1701 | D177: PERSONNEL DE LA DÉFENSE | E177: 31 | F177: 31 | G177: =IF(C177="","",COUNTIF($B$2:B177,"="&B177)) -> 176 | H177: 30 | I177: 0.00104715579 | J177: 1
A178: 01-177 | B178: 01 | C178: J1412 | D178: RÉÉDUCATION EN PSYCHOMOTRICITÉ | E178: 31 | F178: 19 | G178: =IF(C178="","",COUNTIF($B$2:B178,"="&B178)) -> 177 | H178: 30 | I178: 0.00104715579 | J178: 0.6129032258
A179: 01-178 | B179: 01 | C179: A1407 | D179: ÉLEVAGE BOVIN OU ÉQUIN | E179: 31 | F179: 25 | G179: =IF(C179="","",COUNTIF($B$2:B179,"="&B179)) -> 178 | H179: 30 | I179: 0.00104715579 | J179: 0.8064516129
A180: 01-179 | B180: 01 | C180: N4102 | D180: CONDUITE DE TRANSPORT DE PARTICULIERS | E180: 30 | F180: 23 | G180: =IF(C180="","",COUNTIF($B$2:B180,"="&B180)) -> 179 | H180: 30 | I180: 0.001013376571 | J180: 0.7666666667
A181: 01-180 | B181: 01 | C181: K2201 | D181: BLANCHISSERIE INDUSTRIELLE | E181: 30 | F181: 10 | G181: =IF(C181="","",COUNTIF($B$2:B181,"="&B181)) -> 180 | H181: 30 | I181: 0.001013376571 | J181: 0.3333333333
A182: 01-181 | B182: 01 | C182: H2205 | D182: PREMIÈRE TRANSFORMATION DE BOIS D'OEUVRE | E182: 29 | F182: 22 | G182: =IF(C182="","",COUNTIF($B$2:B182,"="&B182)) -> 181 | H182: 30 | I182: 0.0009795973517 | J182: 0.7586206897
A183: 01-182 | B183: 01 | C183: H2202 | D183: CONDUITE D'ÉQUIPEMENT DE FABRICATION DE L'AMEUBLEMENT ET DU BOIS | E183: 28 | F183: 20 | G183: =IF(C183="","",COUNTIF($B$2:B183,"="&B183)) -> 182 | H183: 30 | I183: 0.0009458181327 | J183: 0.7142857143
A184: 01-183 | B184: 01 | C184: D1502 | D184: MANAGEMENT/GESTION DE RAYON PRODUITS ALIMENTAIRES | E184: 28 | F184: 27 | G184: =IF(C184="","",COUNTIF($B$2:B184,"="&B184)) -> 183 | H184: 30 | I184: 0.0009458181327 | J184: 0.9642857143
A185: 01-184 | B185: 01 | C185: J1403 | D185: ERGOTHÉRAPIE | E185: 28 | F185: 14 | G185: =IF(C185="","",COUNTIF($B$2:B185,"="&B185)) -> 184 | H185: 30 | I185: 0.0009458181327 | J185: 0.5
A186: 01-185 | B186: 01 | C186: G1404 | D186: MANAGEMENT D'ÉTABLISSEMENT DE RESTAURATION COLLECTIVE | E186: 27 | F186: 24 | G186: =IF(C186="","",COUNTIF($B$2:B186,"="&B186)) -> 185 | H186: 30 | I186: 0.0009120389137 | J186: 0.8888888889
A187: 01-186 | B187: 01 | C187: I1305 | D187: INSTALLATION ET MAINTENANCE ÉLECTRONIQUE | E187: 27 | F187: 23 | G187: =IF(C187="","",COUNTIF($B$2:B187,"="&B187)) -> 186 | H187: 30 | I187: 0.0009120389137 | J187: 0.8518518519
A188: 01-187 | B188: 01 | C188: H2904 | D188: CONDUITE D'ÉQUIPEMENT DE DÉFORMATION DES MÉTAUX | E188: 27 | F188: 12 | G188: =IF(C188="","",COUNTIF($B$2:B188,"="&B188)) -> 187 | H188: 30 | I188: 0.0009120389137 | J188: 0.4444444444
A189: 01-188 | B189: 01 | C189: H2402 | D189: ASSEMBLAGE - MONTAGE DE VÊTEMENTS ET PRODUITS TEXTILES | E189: 26 | F189: 6 | G189: =IF(C189="","",COUNTIF($B$2:B189,"="&B189)) -> 188 | H189: 30 | I189: 0.0008782596946 | J189: 0.2307692308
A190: 01-189 | B190: 01 | C190: K2306 | D190: SUPERVISION D'EXPLOITATION ÉCO-INDUSTRIELLE | E190: 26 | F190: 22 | G190: =IF(C190="","",COUNTIF($B$2:B190,"="&B190)) -> 189 | H190: 30 | I190: 0.0008782596946 | J190: 0.8461538462
A191: 01-190 | B191: 01 | C191: E1302 | D191: CONDUITE DE MACHINES DE FAÇONNAGE ROUTAGE | E191: 25 | F191: 20 | G191: =IF(C191="","",COUNTIF($B$2:B191,"="&B191)) -> 190 | H191: 30 | I191: 0.0008444804756 | J191: 0.8
A192: 01-191 | B192: 01 | C192: M1202 | D192: AUDIT ET CONTRÔLE COMPTABLES ET FINANCIERS | E192: 25 | F192: 25 | G192: =IF(C192="","",COUNTIF($B$2:B192,"="&B192)) -> 191 | H192: 30 | I192: 0.0008444804756 | J192: 1
A193: 01-192 | B193: 01 | C193: I1101 | D193: DIRECTION ET INGÉNIERIE EN ENTRETIEN INFRASTRUCTURE ET BÂTI | E193: 25 | F193: 24 | G193: =IF(C193="","",COUNTIF($B$2:B193,"="&B193)) -> 192 | H193: =ROUND(E193,-1) -> 30 | I193: 0.0008444804756 | J193: =IF(OR(F193="",F193="."),0,F193/E193) -> 0.96
A194: 01-193 | B194: 01 | C194: N4301 | D194: CONDUITE SUR RAILS | E194: 25 | F194: 25 | G194: =IF(C194="","",COUNTIF($B$2:B194,"="&B194)) -> 193 | H194: 30 | I194: =E194/SUMIF(B:B,B194,E:E) -> 0.0008444804756 | J194: 1
A195: =B195&"-"&G195 -> 01-194 | B195: 01 | C195: M1204 | D195: CONTRÔLE DE GESTION | E195: 25 | F195: 19 | G195: =IF(C195="","",COUNTIF($B$2:B195,"="&B195)) -> 194 | H195: 30 | I195: 0.0008444804756 | J195: 0.76
A196: 01-195 | B196: 01 | C196: M1503 | D196: MANAGEMENT DES RESSOURCES HUMAINES | E196: 25 | F196: 24 | G196: =IF(C196="","",COUNTIF($B$2:B196,"="&B196)) -> 195 | H196: 30 | I196: 0.0008444804756 | J196: 0.96
A197: 01-196 | B197: 01 | C197: H2911 | D197: RÉALISATION DE STRUCTURES MÉTALLIQUES | E197: 25 | F197: 17 | G197: =IF(C197="","",COUNTIF($B$2:B197,"="&B197)) -> 196 | H197: 30 | I197: 0.0008444804756 | J197: 0.68
A198: 01-197 | B198: 01 | C198: H1503 | D198: INTERVENTION TECHNIQUE EN LABORATOIRE D'ANALYSE INDUSTRIELLE | E198: 24 | F198: 18 | G198: =IF(C198="","",COUNTIF($B$2:B198,"="&B198)) -> 197 | H198: 20 | I198: 0.0008107012566 | J198: 0.75
A199: 01-198 | B199: 01 | C199: H1401 | D199: MANAGEMENT ET INGÉNIERIE GESTION INDUSTRIELLE ET LOGISTIQUE | E199: 24 | F199: 21 | G199: =IF(C199="","",COUNTIF($B$2:B199,"="&B199)) -> 198 | H199: 20 | I199: 0.0008107012566 | J199: 0.875
A200: 01-199 | B200: 01 | C200: F1701 | D200: CONSTRUCTION EN BÉTON | E200: 24 | F200: 12 | G200: =IF(C200="","",COUNTIF($B$2:B200,"="&B200)) -> 199 | H200: 20 | I200: 0.0008107012566 | J200: 0.5
... 4300 more rows

Sheet territoire (hidden)
A1: Auvergne-Rhône-Alpes | B1: 84 | E1: A | F1: Agriculture et Pêche, Espaces naturels et Espaces verts, Soins aux animaux
A2: Ain | B2: 01 | E2: B | F2: Arts et Façonnage d'ouvrages d'art
A3: Allier | B3: 03 | E3: C | F3: Banque, Assurance, Immobilier
A4: Ardèche | B4: 07 | E4: D | F4: Commerce, Vente et Grande distribution
A5: Cantal | B5: 15 | E5: E | F5: Communication, Média et Multimédia
A6: Drôme | B6: 26 | E6: F | F6: Construction, Bâtiment et Travaux publics
A7: Isère | B7: 38 | E7: G | F7: Hôtellerie-Restauration, Tourisme, Loisirs et Animation
A8: Loire | B8: 42 | E8: H | F8: Industrie
A9: Haute-Loire | B9: 43 | E9: I | F9: Installation et Maintenance
A10: Puy-de-Dôme | B10: 63 | E10: J | F10: Santé
A11: Rhône | B11: 69 | E11: K | F11: Services à la personne et à la collectivité
A12: Savoie | B12: 73 | E12: L | F12: Spectacle
A13: Haute-Savoie | B13: 74 | E13: M | F13: Support à l'entreprise
A14: Bassin d'AMBERIEU | B14: 8403 | E14: N | F14: Transport et Logistique
A15: Bassin d'AMBERT | B15: 8459
A16: Bassin d'ANNECY | B16: 8407
A17: Bassin d'ANNONAY | B17: 8419
A18: Bassin d'ARDECHE CENTRE | B18: 8436
A19: Bassin d'AUBENAS | B19: 8420
A20: Bassin d'AURILLAC | B20: 8450
A21: Bassin de BELLEY | B21: 8404
A22: Bassin de BOURG EN BRESSE | B22: 8401
A23: Bassin de BRIOUDE | B23: 8460
A24: Bassin de CHABLAIS | B24: 8405
A25: Bassin de CHAMBERY | B25: 8411
A26: Bassin de CLERMONT FERRAND | B26: 8457
A27: Bassin de DROME ARDECHE CENTRE | B27: 8432
A28: Bassin de DROME ARDECHE SUD | B28: 8421
A29: Bassin de DROME-ARDECHE-NORD | B29: 8431
A30: Bassin de GENEVOIS FRANCAIS | B30: 8406
A31: Bassin de GIER | B31: 8427
A32: Bassin de GIVORS | B32: 8445
A33: Bassin de GRENOBLE | B33: 8412
A34: Bassin d'ISERE NORD EST | B34: 8414
A35: Bassin d'ISSOIRE | B35: 8461
A36: Bassin de LE PUY | B36: 8453
A37: Bassin de LOIRE CENTRE | B37: 8417
A38: Bassin de LYON CENTRE | B38: 8428
A39: Bassin de MAURIAC | B39: 8456
A40: Bassin de MAURIENNE | B40: 8409
A41: Bassin de MONISTROL YSSINGEAUX | B41: 8454
A42: Bassin de MONTLUCON | B42: 8447
A43: Bassin de MOULINS | B43: 8448
A44: Bassin d'OULLINS | B44: 8439
A45: Bassin d'OYONNAX | B45: 8402
A46: Bassin de PAYS DE GEX | B46: 8438
A47: Bassin de RHONE EST | B47: 8430
A48: Bassin de RILLIEUX | B48: 8446
A49: Bassin de RIOM ST ELOY | B49: 8458
A50: Bassin de ROANNE | B50: 8416
A51: Bassin de SAINT ETIENNE | B51: 8426
A52: Bassin de SAINT FLOUR | B52: 8451
A53: Bassin de TARARE | B53: 8442
A54: Bassin de TARENTAISE | B54: 8410
A55: Bassin de TASSIN | B55: 8443
A56: Bassin de THIERS | B56: 8455
A57: Bassin de TREVOUX | B57: 8437
A58: Bassin de VALLEE DE L ARVE | B58: 8408
A59: Bassin de VALLEE DE LA DROME | B59: 8435
A60: Bassin de VAULX MEYZIEU | B60: 8440
A61: Bassin de VICHY CUSSET | B61: 8449
A62: Bassin de VIENNE ROUSSILLON | B62: 8415
A63: Bassin de VILLEFRANCHE | B63: 8444
A64: Bassin de VILLEURBANNE | B64: 8441
A65: Bassin de VOIRON | B65: 8413

Sheet o
C1: TOP 20 DES MÉTIERS recherchés par les établissements du territoire parmi les offres enregistrées à Pôle emploi en 2021
B4: source: Pôle emploi, offres enregistrées (hors offres partenaires)
B7: Choix du territoire | E7: Rang | F7: Métier ROME | G7: Domaine | H7: Nb Offres | I7: Poids / total | J7: % offres durables*
B8: Auvergne-Rhône-Alpes | E8: 1 | F8: =VLOOKUP(VLOOKUP($B$8,territoire!$A:$B,2,FALSE)&"-"&$E8,data!$A:$J,4,FALSE) -> PERSONNEL DE CUISINE | G8: =VLOOKUP(LEFT(VLOOKUP(VLOOKUP($B$8,territoire!$A:$B,2,FALSE)&"-"&$E8,data!$A:$G,3,FALSE),1),territoire!$E:$F,2,FALSE) -> Hôtellerie-Restauration, Tourisme, Loisirs et Animation | H8: =VLOOKUP(VLOOKUP($B$8,territoire!$A:$B,2,FALSE)&"-"&$E8,data!$A:$J,8,FALSE) -> 13040 | I8: =VLOOKUP(VLOOKUP($B$8,territoire!$A:$B,2,FALSE)&"-"&$E8,data!$A:$J,9,FALSE) -> 0.02766311288 | J8: =VLOOKUP(VLOOKUP($B$8,territoire!$A:$B,2,FALSE)&"-"&$E8,data!$A:$J,10,FALSE) -> 0.4996549344
E9: 2 | F9: =VLOOKUP(VLOOKUP($B$8,territoire!$A:$B,2,FALSE)&"-"&$E9,data!$A:$J,4,FALSE) -> ASSISTANCE AUPRÈS D'ADULTES | G9: =VLOOKUP(LEFT(VLOOKUP(VLOOKUP($B$8,territoire!$A:$B,2,FALSE)&"-"&$E9,data!$A:$G,3,FALSE),1),territoire!$E:$F,2,FALSE) -> Services à la personne et à la collectivité | H9: =VLOOKUP(VLOOKUP($B$8,territoire!$A:$B,2,FALSE)&"-"&$E9,data!$A:$J,8,FALSE) -> 12440 | I9: =VLOOKUP(VLOOKUP($B$8,territoire!$A:$B,2,FALSE)&"-"&$E9,data!$A:$J,9,FALSE) -> 0.02638824662 | J9: =VLOOKUP(VLOOKUP($B$8,territoire!$A:$B,2,FALSE)&"-"&$E9,data!$A:$J,10,FALSE) -> 0.8196945338
E10: 3 | F10: =VLOOKUP(VLOOKUP($B$8,territoire!$A:$B,2,FALSE)&"-"&$E10,data!$A:$J,4,FALSE) -> MAGASINAGE ET PRÉPARATION DE COMMANDES | G10: =VLOOKUP(LEFT(VLOOKUP(VLOOKUP($B$8,territoire!$A:$B,2,FALSE)&"-"&$E10,data!$A:$G,3,FALSE),1),territoire!$E:$F,2,FALSE) -> Transport et Logistique | H10: =VLOOKUP(VLOOKUP($B$8,territoire!$A:$B,2,FALSE)&"-"&$E10,data!$A:$J,8,FALSE) -> 12180 | I10: =VLOOKUP(VLOOKUP($B$8,territoire!$A:$B,2,FALSE)&"-"&$E10,data!$A:$J,9,FALSE) -> 0.02583460254 | J10: =VLOOKUP(VLOOKUP($B$8,territoire!$A:$B,2,FALSE)&"-"&$E10,data!$A:$J,10,FALSE) -> 0.5137531817
E11: 4 | F11: =VLOOKUP(VLOOKUP($B$8,territoire!$A:$B,2,FALSE)&"-"&$E11,data!$A:$J,4,FALSE) -> SERVICES DOMESTIQUES | G11: =VLOOKUP(LEFT(VLOOKUP(VLOOKUP($B$8,territoire!$A:$B,2,FALSE)&"-"&$E11,data!$A:$G,3,FALSE),1),territoire!$E:$F,2,FALSE) -> Services à la personne et à la collectivité | H11: =VLOOKUP(VLOOKUP($B$8,territoire!$A:$B,2,FALSE)&"-"&$E11,data!$A:$J,8,FALSE) -> 12040 | I11: =VLOOKUP(VLOOKUP($B$8,territoire!$A:$B,2,FALSE)&"-"&$E11,data!$A:$J,9,FALSE) -> 0.02554611367 | J11: =VLOOKUP(VLOOKUP($B$8,territoire!$A:$B,2,FALSE)&"-"&$E11,data!$A:$J,10,FALSE) -> 0.7420908412
E12: 5 | F12: =VLOOKUP(VLOOKUP($B$8,territoire!$A:$B,2,FALSE)&"-"&$E12,data!$A:$J,4,FALSE) -> NETTOYAGE DE LOCAUX | G12: =VLOOKUP(LEFT(VLOOKUP(VLOOKUP($B$8,territoire!$A:$B,2,FALSE)&"-"&$E12,data!$A:$G,3,FALSE),1),territoire!$E:$F,2,FALSE) -> Services à la personne et à la collectivité | H12: =VLOOKUP(VLOOKUP($B$8,territoire!$A:$B,2,FALSE)&"-"&$E12,data!$A:$J,8,FALSE) -> 10860 | I12: =VLOOKUP(VLOOKUP($B$8,territoire!$A:$B,2,FALSE)&"-"&$E12,data!$A:$J,9,FALSE) -> 0.02303032103 | J12: =VLOOKUP(VLOOKUP($B$8,territoire!$A:$B,2,FALSE)&"-"&$E12,data!$A:$J,10,FALSE) -> 0.4722298978
E13: 6 | F13: =VLOOKUP(VLOOKUP($B$8,territoire!$A:$B,2,FALSE)&"-"&$E13,data!$A:$J,4,FALSE) -> SERVICE EN RESTAURATION | G13: =VLOOKUP(LEFT(VLOOKUP(VLOOKUP($B$8,territoire!$A:$B,2,FALSE)&"-"&$E13,data!$A:$G,3,FALSE),1),territoire!$E:$F,2,FALSE) -> Hôtellerie-Restauration, Tourisme, Loisirs et Animation | H13: =VLOOKUP(VLOOKUP($B$8,territoire!$A:$B,2,FALSE)&"-"&$E13,data!$A:$J,8,FALSE) -> 9830 | I13: =VLOOKUP(VLOOKUP($B$8,territoire!$A:$B,2,FALSE)&"-"&$E13,data!$A:$J,9,FALSE) -> 0.0208560483 | J13: =VLOOKUP(VLOOKUP($B$8,territoire!$A:$B,2,FALSE)&"-"&$E13,data!$A:$J,10,FALSE) -> 0.4725386493
E14: 7 | F14: =VLOOKUP(VLOOKUP($B$8,territoire!$A:$B,2,FALSE)&"-"&$E14,data!$A:$J,4,FALSE) -> COMPTABILITÉ | G14: =VLOOKUP(LEFT(VLOOKUP(VLOOKUP($B$8,territoire!$A:$B,2,FALSE)&"-"&$E14,data!$A:$G,3,FALSE),1),territoire!$E:$F,2,FALSE) -> Support à l'entreprise | H14: =VLOOKUP(VLOOKUP($B$8,territoire!$A:$B,2,FALSE)&"-"&$E14,data!$A:$J,8,FALSE) -> 8250 | I14: =VLOOKUP(VLOOKUP($B$8,territoire!$A:$B,2,FALSE)&"-"&$E14,data!$A:$J,9,FALSE) -> 0.01750448643 | J14: =VLOOKUP(VLOOKUP($B$8,territoire!$A:$B,2,FALSE)&"-"&$E14,data!$A:$J,10,FALSE) -> 0.6850460494
E15: 8 | F15: =VLOOKUP(VLOOKUP($B$8,territoire!$A:$B,2,FALSE)&"-"&$E15,data!$A:$J,4,FALSE) -> CONDUITE DE TRANSPORT DE MARCHANDISES SUR LONGUE DISTANCE | G15: =VLOOKUP(LEFT(VLOOKUP(VLOOKUP($B$8,territoire!$A:$B,2,FALSE)&"-"&$E15,data!$A:$G,3,FALSE),1),territoire!$E:$F,2,FALSE) -> Transport et Logistique | H15: =VLOOKUP(VLOOKUP($B$8,territoire!$A:$B,2,FALSE)&"-"&$E15,data!$A:$J,8,FALSE) -> 8050 | I15: =VLOOKUP(VLOOKUP($B$8,territoire!$A:$B,2,FALSE)&"-"&$E15,data!$A:$J,9,FALSE) -> 0.0170759956 | J15: =VLOOKUP(VLOOKUP($B$8,territoire!$A:$B,2,FALSE)&"-"&$E15,data!$A:$J,10,FALSE) -> 0.6768944099
E16: 9 | F16: =VLOOKUP(VLOOKUP($B$8,territoire!$A:$B,2,FALSE)&"-"&$E16,data!$A:$J,4,FALSE) -> PERSONNEL POLYVALENT EN RESTAURATION | G16: =VLOOKUP(LEFT(VLOOKUP(VLOOKUP($B$8,territoire!$A:$B,2,FALSE)&"-"&$E16,data!$A:$G,3,FALSE),1),territoire!$E:$F,2,FALSE) -> Hôtellerie-Restauration, Tourisme, Loisirs et Animation | H16: =VLOOKUP(VLOOKUP($B$8,territoire!$A:$B,2,FALSE)&"-"&$E16,data!$A:$J,8,FALSE) -> 7710 | I16: =VLOOKUP(VLOOKUP($B$8,territoire!$A:$B,2,FALSE)&"-"&$E16,data!$A:$J,9,FALSE) -> 0.0163632584 | J16: =VLOOKUP(VLOOKUP($B$8,territoire!$A:$B,2,FALSE)&"-"&$E16,data!$A:$J,10,FALSE) -> 0.7040445942
E17: 10 | F17: =VLOOKUP(VLOOKUP($B$8,territoire!$A:$B,2,FALSE)&"-"&$E17,data!$A:$J,4,FALSE) -> ASSISTANAT COMMERCIAL | G17: =VLOOKUP(LEFT(VLOOKUP(VLOOKUP($B$8,territoire!$A:$B,2,FALSE)&"-"&$E17,data!$A:$G,3,FALSE),1),territoire!$E:$F,2,FALSE) -> Commerce, Vente et Grande distribution | H17: =VLOOKUP(VLOOKUP($B$8,territoire!$A:$B,2,FALSE)&"-"&$E17,data!$A:$J,8,FALSE) -> 7600 | I17: =VLOOKUP(VLOOKUP($B$8,territoire!$A:$B,2,FALSE)&"-"&$E17,data!$A:$J,9,FALSE) -> 0.01611507312 | J17: =VLOOKUP(VLOOKUP($B$8,territoire!$A:$B,2,FALSE)&"-"&$E17,data!$A:$J,10,FALSE) -> 0.7134395156
E18: 11 | F18: =VLOOKUP(VLOOKUP($B$8,territoire!$A:$B,2,FALSE)&"-"&$E18,data!$A:$J,4,FALSE) -> ASSISTANCE AUPRÈS D'ENFANTS | G18: =VLOOKUP(LEFT(VLOOKUP(VLOOKUP($B$8,territoire!$A:$B,2,FALSE)&"-"&$E18,data!$A:$G,3,FALSE),1),territoire!$E:$F,2,FALSE) -> Services à la personne et à la collectivité | H18: =VLOOKUP(VLOOKUP($B$8,territoire!$A:$B,2,FALSE)&"-"&$E18,data!$A:$J,8,FALSE) -> 7000 | I18: =VLOOKUP(VLOOKUP($B$8,territoire!$A:$B,2,FALSE)&"-"&$E18,data!$A:$J,9,FALSE) -> 0.01484444935 | J18: =VLOOKUP(VLOOKUP($B$8,territoire!$A:$B,2,FALSE)&"-"&$E18,data!$A:$J,10,FALSE) -> 0.7710774507
E19: 12 | F19: =VLOOKUP(VLOOKUP($B$8,territoire!$A:$B,2,FALSE)&"-"&$E19,data!$A:$J,4,FALSE) -> MISE EN RAYON LIBRE-SERVICE | G19: =VLOOKUP(LEFT(VLOOKUP(VLOOKUP($B$8,territoire!$A:$B,2,FALSE)&"-"&$E19,data!$A:$G,3,FALSE),1),territoire!$E:$F,2,FALSE) -> Commerce, Vente et Grande distribution | H19: =VLOOKUP(VLOOKUP($B$8,territoire!$A:$B,2,FALSE)&"-"&$E19,data!$A:$J,8,FALSE) -> 6870 | I19: =VLOOKUP(VLOOKUP($B$8,territoire!$A:$B,2,FALSE)&"-"&$E19,data!$A:$J,9,FALSE) -> 0.01458141538 | J19: =VLOOKUP(VLOOKUP($B$8,territoire!$A:$B,2,FALSE)&"-"&$E19,data!$A:$J,10,FALSE) -> 0.6214722141
E20: 13 | F20: =VLOOKUP(VLOOKUP($B$8,territoire!$A:$B,2,FALSE)&"-"&$E20,data!$A:$J,4,FALSE) -> SOINS D'HYGIÈNE, DE CONFORT DU PATIENT | G20: =VLOOKUP(LEFT(VLOOKUP(VLOOKUP($B$8,territoire!$A:$B,2,FALSE)&"-"&$E20,data!$A:$G,3,FALSE),1),territoire!$E:$F,2,FALSE) -> Santé | H20: =VLOOKUP(VLOOKUP($B$8,territoire!$A:$B,2,FALSE)&"-"&$E20,data!$A:$J,8,FALSE) -> 6560 | I20: =VLOOKUP(VLOOKUP($B$8,territoire!$A:$B,2,FALSE)&"-"&$E20,data!$A:$J,9,FALSE) -> 0.01391322424 | J20: =VLOOKUP(VLOOKUP($B$8,territoire!$A:$B,2,FALSE)&"-"&$E20,data!$A:$J,10,FALSE) -> 0.5305686843
E21: 14 | F21: =VLOOKUP(VLOOKUP($B$8,territoire!$A:$B,2,FALSE)&"-"&$E21,data!$A:$J,4,FALSE) -> VENTE EN ALIMENTATION | G21: =VLOOKUP(LEFT(VLOOKUP(VLOOKUP($B$8,territoire!$A:$B,2,FALSE)&"-"&$E21,data!$A:$G,3,FALSE),1),territoire!$E:$F,2,FALSE) -> Commerce, Vente et Grande distribution | H21: =VLOOKUP(VLOOKUP($B$8,territoire!$A:$B,2,FALSE)&"-"&$E21,data!$A:$J,8,FALSE) -> 6380 | I21: =VLOOKUP(VLOOKUP($B$8,territoire!$A:$B,2,FALSE)&"-"&$E21,data!$A:$J,9,FALSE) -> 0.01353564322 | J21: =VLOOKUP(VLOOKUP($B$8,territoire!$A:$B,2,FALSE)&"-"&$E21,data!$A:$J,10,FALSE) -> 0.6790471713
E22: 15 | F22: =VLOOKUP(VLOOKUP($B$8,territoire!$A:$B,2,FALSE)&"-"&$E22,data!$A:$J,4,FALSE) -> SECRÉTARIAT | G22: =VLOOKUP(LEFT(VLOOKUP(VLOOKUP($B$8,territoire!$A:$B,2,FALSE)&"-"&$E22,data!$A:$G,3,FALSE),1),territoire!$E:$F,2,FALSE) -> Support à l'entreprise | H22: =VLOOKUP(VLOOKUP($B$8,territoire!$A:$B,2,FALSE)&"-"&$E22,data!$A:$J,8,FALSE) -> 6360 | I22: =VLOOKUP(VLOOKUP($B$8,territoire!$A:$B,2,FALSE)&"-"&$E22,data!$A:$J,9,FALSE) -> 0.01349746087 | J22: =VLOOKUP(VLOOKUP($B$8,territoire!$A:$B,2,FALSE)&"-"&$E22,data!$A:$J,10,FALSE) -> 0.5763004872
E23: 16 | F23: =VLOOKUP(VLOOKUP($B$8,territoire!$A:$B,2,FALSE)&"-"&$E23,data!$A:$J,4,FALSE) -> SOINS INFIRMIERS GÉNÉRALISTES | G23: =VLOOKUP(LEFT(VLOOKUP(VLOOKUP($B$8,territoire!$A:$B,2,FALSE)&"-"&$E23,data!$A:$G,3,FALSE),1),territoire!$E:$F,2,FALSE) -> Santé | H23: =VLOOKUP(VLOOKUP($B$8,territoire!$A:$B,2,FALSE)&"-"&$E23,data!$A:$J,8,FALSE) -> 6040 | I23: =VLOOKUP(VLOOKUP($B$8,territoire!$A:$B,2,FALSE)&"-"&$E23,data!$A:$J,9,FALSE) -> 0.01281866353 | J23: =VLOOKUP(VLOOKUP($B$8,territoire!$A:$B,2,FALSE)&"-"&$E23,data!$A:$J,10,FALSE) -> 0.5613106073
E24: 17 | F24: =VLOOKUP(VLOOKUP($B$8,territoire!$A:$B,2,FALSE)&"-"&$E24,data!$A:$J,4,FALSE) -> INSTALLATION ET MAINTENANCE D'ÉQUIPEMENTS INDUSTRIELS ET D'EXPLOITATION | G24: =VLOOKUP(LEFT(VLOOKUP(VLOOKUP($B$8,territoire!$A:$B,2,FALSE)&"-"&$E24,data!$A:$G,3,FALSE),1),territoire!$E:$F,2,FALSE) -> Installation et Maintenance | H24: =VLOOKUP(VLOOKUP($B$8,territoire!$A:$B,2,FALSE)&"-"&$E24,data!$A:$J,8,FALSE) -> 5750 | I24: =VLOOKUP(VLOOKUP($B$8,territoire!$A:$B,2,FALSE)&"-"&$E24,data!$A:$J,9,FALSE) -> 0.01219077599 | J24: =VLOOKUP(VLOOKUP($B$8,territoire!$A:$B,2,FALSE)&"-"&$E24,data!$A:$J,10,FALSE) -> 0.8454846007
E25: 18 | F25: =VLOOKUP(VLOOKUP($B$8,territoire!$A:$B,2,FALSE)&"-"&$E25,data!$A:$J,4,FALSE) -> SÉCURITÉ ET SURVEILLANCE PRIVÉES | G25: =VLOOKUP(LEFT(VLOOKUP(VLOOKUP($B$8,territoire!$A:$B,2,FALSE)&"-"&$E25,data!$A:$G,3,FALSE),1),territoire!$E:$F,2,FALSE) -> Services à la personne et à la collectivité | H25: =VLOOKUP(VLOOKUP($B$8,territoire!$A:$B,2,FALSE)&"-"&$E25,data!$A:$J,8,FALSE) -> 5560 | I25: =VLOOKUP(VLOOKUP($B$8,territoire!$A:$B,2,FALSE)&"-"&$E25,data!$A:$J,9,FALSE) -> 0.01179834628 | J25: =VLOOKUP(VLOOKUP($B$8,territoire!$A:$B,2,FALSE)&"-"&$E25,data!$A:$J,10,FALSE) -> 0.6574973031
E26: 19 | F26: =VLOOKUP(VLOOKUP($B$8,territoire!$A:$B,2,FALSE)&"-"&$E26,data!$A:$J,4,FALSE) -> MÉCANIQUE AUTOMOBILE ET ENTRETIEN DE VÉHICULES | G26: =VLOOKUP(LEFT(VLOOKUP(VLOOKUP($B$8,territoire!$A:$B,2,FALSE)&"-"&$E26,data!$A:$G,3,FALSE),1),territoire!$E:$F,2,FALSE) -> Installation et Maintenance | H26: =VLOOKUP(VLOOKUP($B$8,territoire!$A:$B,2,FALSE)&"-"&$E26,data!$A:$J,8,FALSE) -> 5320 | I26: =VLOOKUP(VLOOKUP($B$8,territoire!$A:$B,2,FALSE)&"-"&$E26,data!$A:$J,9,FALSE) -> 0.01127864207 | J26: =VLOOKUP(VLOOKUP($B$8,territoire!$A:$B,2,FALSE)&"-"&$E26,data!$A:$J,10,FALSE) -> 0.7816437841
E27: 20 | F27: =VLOOKUP(VLOOKUP($B$8,territoire!$A:$B,2,FALSE)&"-"&$E27,data!$A:$J,4,FALSE) -> ANIMATION DE LOISIRS AUPRÈS D'ENFANTS OU D'ADOLESCENTS | G27: =VLOOKUP(LEFT(VLOOKUP(VLOOKUP($B$8,territoire!$A:$B,2,FALSE)&"-"&$E27,data!$A:$G,3,FALSE),1),territoire!$E:$F,2,FALSE) -> Hôtellerie-Restauration, Tourisme, Loisirs et Animation | H27: =VLOOKUP(VLOOKUP($B$8,territoire!$A:$B,2,FALSE)&"-"&$E27,data!$A:$J,8,FALSE) -> 4840 | I27: =VLOOKUP(VLOOKUP($B$8,territoire!$A:$B,2,FALSE)&"-"&$E27,data!$A:$J,9,FALSE) -> 0.01026893102 | J27: =VLOOKUP(VLOOKUP($B$8,territoire!$A:$B,2,FALSE)&"-"&$E27,data!$A:$J,10,FALSE) -> 0.4722164842
H28: * CDI ou CDD de plus de 6 mois
